[Event "*** Titled Tuesday Blitz"]
[Site "Chess.com"]
[Date "2019.07.02"]
[Round "8"]
[White "Philosopherrr"]
[Black "JonahWillow"]
[Result "0-1"]
[WhiteElo "2522"]
[BlackElo "2705"]
[TimeControl "180+2"]
[EndTime "14:50:07 PDT"]
[Termination "JonahWillow won by checkmate"]

1. Nf3 {[%clk 0:03:01.9]} 1... c5 {[%clk 0:02:59.3]} 2. g3 {[%clk 0:03:01.2]}
2... Nc6 {[%clk 0:02:59.8]} 3. Bg2 {[%clk 0:03:03.1]} 3... g6 {[%clk 0:03:01.7]}
4. O-O {[%clk 0:03:04.3]} 4... Bh6 {[%clk 0:03:02.5]} 5. d3 {[%clk 0:02:41.5]}
5... Bg7 {[%clk 0:03:01.7]} 6. e4 {[%clk 0:02:41.6]} 6... d6 {[%clk 0:03:02]} 7.
Nc3 {[%clk 0:02:35.2]} 7... Nf6 {[%clk 0:03:02.8]} 8. Ne2 {[%clk 0:02:35.5]}
8... O-O {[%clk 0:02:56.9]} 9. h3 {[%clk 0:02:35.7]} 9... e5 {[%clk 0:02:57.5]}
10. a4 {[%clk 0:02:26.7]} 10... Nh5 {[%clk 0:02:54.7]} 11. c3 {[%clk 0:02:16.1]}
11... f5 {[%clk 0:02:54.7]} 12. exf5 {[%clk 0:02:05.8]} 12... gxf5 {[%clk
0:02:56.6]} 13. d4 {[%clk 0:02:00.8]} 13... e4 {[%clk 0:02:48.1]} 14. Qb3+
{[%clk 0:01:56.7]} 14... c4 {[%clk 0:02:41.4]} 15. Qxc4+ {[%clk 0:01:52.6]}
15... d5 {[%clk 0:02:42.7]} 16. Qb3 {[%clk 0:01:53.7]} 16... exf3 {[%clk
0:02:43.9]} 17. Bxf3 {[%clk 0:01:55]} 17... Nf6 {[%clk 0:02:45.6]} 18. Bg5
{[%clk 0:01:55.1]} 18... Be6 {[%clk 0:02:30]} 19. Nf4 {[%clk 0:01:54]} 19... Bf7
{[%clk 0:02:31.4]} 20. Qxb7 {[%clk 0:01:53.9]} 20... Na5 {[%clk 0:02:28]} 21.
Qa6 {[%clk 0:01:54.3]} 21... Nc4 {[%clk 0:01:48.7]} 22. Rfe1 {[%clk 0:01:45.3]}
22... Nd2 {[%clk 0:01:45.8]} 23. Bg2 {[%clk 0:01:39.4]} 23... Nde4 {[%clk
0:01:46.9]} 24. Ne6 {[%clk 0:01:33]} 24... Bxe6 {[%clk 0:01:32.6]} 25. Qxe6+
{[%clk 0:01:33.4]} 25... Kh8 {[%clk 0:01:34.3]} 26. Qxf5 {[%clk 0:01:30.9]}
26... Nxg5 {[%clk 0:01:13]} 27. Qxg5 {[%clk 0:01:31.4]} 27... Qd7 {[%clk
0:01:14.7]} 28. Re5 {[%clk 0:01:22.1]} 28... Rae8 {[%clk 0:01:12.4]} 29. Rae1
{[%clk 0:01:20.1]} 29... Ne4 {[%clk 0:01:07.5]} 30. Bxe4 {[%clk 0:00:51.3]}
30... Bxe5 {[%clk 0:01:05.4]} 31. Bd3 {[%clk 0:00:44.1]} 31... Bf6 {[%clk
0:00:54.7]} 32. Rxe8 {[%clk 0:00:38.2]} 32... Bxg5 {[%clk 0:00:51.6]} 33. Rxf8+
{[%clk 0:00:39.1]} 33... Kg7 {[%clk 0:00:53.5]} 34. Rf5 {[%clk 0:00:40]} 34...
h6 {[%clk 0:00:52.3]} 35. h4 {[%clk 0:00:39.6]} 35... Bf6 {[%clk 0:00:50.1]} 36.
Kg2 {[%clk 0:00:37.2]} 36... a5 {[%clk 0:00:44.9]} 37. Bc2 {[%clk 0:00:33.9]}
37... Qb7 {[%clk 0:00:44.2]} 38. b3 {[%clk 0:00:34.5]} 38... Qc6 {[%clk
0:00:43.8]} 39. Bd1 {[%clk 0:00:32.3]} 39... Qxc3 {[%clk 0:00:43.4]} 40. Rxd5
{[%clk 0:00:33.2]} 40... Bxd4 {[%clk 0:00:42.1]} 41. Rf5 {[%clk 0:00:28.3]}
41... Bf6 {[%clk 0:00:38.3]} 42. Bh5 {[%clk 0:00:20.9]} 42... Qxb3 {[%clk
0:00:35.8]} 43. Rxa5 {[%clk 0:00:21.7]} 43... Qb7+ {[%clk 0:00:34]} 44. Bf3
{[%clk 0:00:22]} 44... Qb4 {[%clk 0:00:35.3]} 45. Ra7+ {[%clk 0:00:22.7]} 45...
Be7 {[%clk 0:00:33.2]} 46. a5 {[%clk 0:00:23.7]} 46... Kf6 {[%clk 0:00:32.2]}
47. a6 {[%clk 0:00:24.4]} 47... Bc5 {[%clk 0:00:33.1]} 48. Rb7 {[%clk
0:00:25.6]} 48... Qd2 {[%clk 0:00:29.6]} 49. a7 {[%clk 0:00:22]} 49... Qxf2+
{[%clk 0:00:30.1]} 50. Kh3 {[%clk 0:00:23.5]} 50... Bxa7 {[%clk 0:00:26.5]} 51.
Bd5 {[%clk 0:00:24.5]} 51... Qf1+ {[%clk 0:00:24.5]} 52. Bg2 {[%clk 0:00:24.9]}
52... Qf5+ {[%clk 0:00:23.2]} 53. Kh2 {[%clk 0:00:24]} 53... Qc5 {[%clk
0:00:23.1]} 54. Rh7 {[%clk 0:00:22.7]} 54... Qe3 {[%clk 0:00:20.5]} 55. Rd7
{[%clk 0:00:20.8]} 55... Bb8 {[%clk 0:00:20]} 56. Rb7 {[%clk 0:00:19.1]} 56...
Qxg3+ {[%clk 0:00:20.7]} 57. Kg1 {[%clk 0:00:20.6]} 57... Qe1+ {[%clk
0:00:21.6]} 58. Bf1 {[%clk 0:00:21.2]} 58... Qe3+ {[%clk 0:00:22.3]} 59. Kg2
{[%clk 0:00:22.1]} 59... Qg3+ {[%clk 0:00:23.4]} 60. Kh1 {[%clk 0:00:23.3]}
60... Qh2# {[%clk 0:00:25.3]} 0-1

[Event "*** Titled Tuesday Blitz"]
[Site "Chess.com"]
[Date "2019.07.02"]
[Round "8"]
[White "NemtsevIgor"]
[Black "XiaoKangZhong"]
[Result "0-1"]
[WhiteElo "2293"]
[BlackElo "2251"]
[TimeControl "180+2"]
[EndTime "14:50:07 PDT"]
[Termination "XiaoKangZhong won by resignation"]

1. d4 {[%clk 0:03:01.9]} 1... Nf6 {[%clk 0:03:00.8]} 2. Bf4 {[%clk 0:03:02.1]}
2... g6 {[%clk 0:03:01.5]} 3. e3 {[%clk 0:03:02.3]} 3... Bg7 {[%clk 0:03:01.9]}
4. Nf3 {[%clk 0:03:03.5]} 4... O-O {[%clk 0:03:03.1]} 5. Be2 {[%clk 0:03:04.1]}
5... d6 {[%clk 0:03:04.3]} 6. O-O {[%clk 0:03:04.9]} 6... Nfd7 {[%clk
0:03:05.6]} 7. Nc3 {[%clk 0:03:01.7]} 7... Qe8 {[%clk 0:03:06.3]} 8. Nd5 {[%clk
0:02:56.3]} 8... Qd8 {[%clk 0:03:06.7]} 9. c4 {[%clk 0:02:54.8]} 9... e6 {[%clk
0:03:03]} 10. Nc3 {[%clk 0:02:52.4]} 10... e5 {[%clk 0:03:03.3]} 11. Bg5 {[%clk
0:02:38.1]} 11... f6 {[%clk 0:02:59.8]} 12. Bh4 {[%clk 0:02:39.3]} 12... g5
{[%clk 0:02:51.5]} 13. Bg3 {[%clk 0:02:38]} 13... h5 {[%clk 0:02:50.8]} 14. h4
{[%clk 0:02:36]} 14... g4 {[%clk 0:02:50]} 15. Nd2 {[%clk 0:02:35.2]} 15... f5
{[%clk 0:02:49.9]} 16. dxe5 {[%clk 0:02:19.2]} 16... dxe5 {[%clk 0:02:47.8]} 17.
c5 {[%clk 0:02:02.1]} 17... f4 {[%clk 0:02:42.4]} 18. exf4 {[%clk 0:02:02.9]}
18... exf4 {[%clk 0:02:44.3]} 19. Bc4+ {[%clk 0:01:59.8]} 19... Kh8 {[%clk
0:02:40.7]} 20. Nde4 {[%clk 0:01:53]} 20... fxg3 {[%clk 0:02:33]} 21. fxg3
{[%clk 0:01:41.2]} 21... Ne5 {[%clk 0:02:28.7]} 22. Rxf8+ {[%clk 0:01:24.2]}
22... Qxf8 {[%clk 0:02:25.5]} 23. Qe2 {[%clk 0:01:12.2]} 23... Nxc4 {[%clk
0:02:23]} 24. Qxc4 {[%clk 0:01:12.5]} 24... Nc6 {[%clk 0:02:20.7]} 25. Ng5
{[%clk 0:01:09.8]} 25... Bd4+ {[%clk 0:02:10.8]} 26. Kh2 {[%clk 0:01:10.6]}
26... Qg8 {[%clk 0:01:27.9]} 27. Nd5 {[%clk 0:00:54.4]} 27... Be6 {[%clk
0:01:23.6]} 28. Nxe6 {[%clk 0:00:35.9]} 28... Qxe6 {[%clk 0:01:25.5]} 29. Rd1
{[%clk 0:00:30.7]} 29... Qe5 {[%clk 0:01:18.2]} 30. Nf4 {[%clk 0:00:26.4]} 30...
Kg7 {[%clk 0:01:10.1]} 31. Qb5 {[%clk 0:00:21.4]} 31... Rb8 {[%clk 0:01:00.9]}
32. Qb3 {[%clk 0:00:20.7]} 32... Kh7 {[%clk 0:00:52.1]} 33. Qd3+ {[%clk
0:00:21.2]} 33... Kg8 {[%clk 0:00:43.9]} 34. Qg6+ {[%clk 0:00:22.1]} 34... Qg7
{[%clk 0:00:44.9]} 35. Qe6+ {[%clk 0:00:21]} 35... Qf7 {[%clk 0:00:44.3]} 36.
Qh6 {[%clk 0:00:20.9]} 36... Ne7 {[%clk 0:00:35.6]} 37. Nxh5 {[%clk 0:00:21.8]}
37... Nf5 {[%clk 0:00:32.7]} 38. Qg5+ {[%clk 0:00:22.2]} 38... Bg7 {[%clk
0:00:32.8]} 39. Rf1 {[%clk 0:00:22]} 39... Rf8 {[%clk 0:00:30.8]} 40. Qxg4
{[%clk 0:00:21.6]} 40... Nh6 {[%clk 0:00:28]} 41. Rxf7 {[%clk 0:00:21]} 41...
Nxg4+ {[%clk 0:00:28.5]} 42. Kh3 {[%clk 0:00:22.9]} 42... Rxf7 {[%clk
0:00:28.3]} 43. Kxg4 {[%clk 0:00:24.8]} 43... Bh6 {[%clk 0:00:27.6]} 44. Kh3
{[%clk 0:00:24.9]} 44... Rf5 {[%clk 0:00:27.3]} 45. g4 {[%clk 0:00:26.2]} 45...
Rxc5 {[%clk 0:00:28]} 46. Nf6+ {[%clk 0:00:27.2]} 46... Kf7 {[%clk 0:00:29.1]}
47. g5 {[%clk 0:00:29]} 47... Rc2 {[%clk 0:00:25.3]} 48. Ne4 {[%clk 0:00:24]}
48... Bg7 {[%clk 0:00:23.9]} 49. h5 {[%clk 0:00:24.9]} 49... Rxb2 {[%clk
0:00:23.9]} 50. h6 {[%clk 0:00:26.1]} 50... Be5 {[%clk 0:00:23]} 51. Nc5 {[%clk
0:00:19.4]} 51... Rxa2 {[%clk 0:00:19.7]} 52. Nd3 {[%clk 0:00:20.5]} 52... Ra3
{[%clk 0:00:20.1]} 53. Kg4 {[%clk 0:00:21.9]} 53... Rxd3 {[%clk 0:00:21.1]} 54.
Kf5 {[%clk 0:00:23.8]} 54... Bc3 {[%clk 0:00:20.6]} 55. g6+ {[%clk 0:00:25.3]}
55... Kg8 {[%clk 0:00:21.7]} 56. h7+ {[%clk 0:00:26.2]} 56... Kg7 {[%clk
0:00:21.7]} 57. g4 {[%clk 0:00:28]} 57... Rd5+ {[%clk 0:00:22.5]} 58. Ke6 {[%clk
0:00:29.2]} 58... Re5+ {[%clk 0:00:23.3]} 59. Kd7 {[%clk 0:00:29.6]} 59... a5
{[%clk 0:00:23.2]} 60. Kxc7 {[%clk 0:00:29]} 60... a4 {[%clk 0:00:24.4]} 61.
Kxb7 {[%clk 0:00:29.5]} 61... a3 {[%clk 0:00:25.7]} 0-1

[Event "*** Titled Tuesday Blitz"]
[Site "Chess.com"]
[Date "2019.07.02"]
[Round "8"]
[White "volcanoexplorer"]
[Black "dolynachess"]
[Result "0-1"]
[WhiteElo "2516"]
[BlackElo "2469"]
[TimeControl "180+2"]
[EndTime "14:50:09 PDT"]
[Termination "dolynachess won by resignation"]

1. e4 {[%clk 0:03:01.9]} 1... d5 {[%clk 0:03:00]} 2. exd5 {[%clk 0:03:02.9]}
2... Qxd5 {[%clk 0:03:01.9]} 3. Nc3 {[%clk 0:03:04.4]} 3... Qd8 {[%clk
0:03:02.8]} 4. Nf3 {[%clk 0:03:06.1]} 4... Bg4 {[%clk 0:03:03.9]} 5. Be2 {[%clk
0:03:06.6]} 5... Nf6 {[%clk 0:03:03.8]} 6. d4 {[%clk 0:03:07.6]} 6... e6 {[%clk
0:03:04.9]} 7. h3 {[%clk 0:03:09]} 7... Bxf3 {[%clk 0:03:05.7]} 8. Bxf3 {[%clk
0:03:10.9]} 8... c6 {[%clk 0:03:07.3]} 9. O-O {[%clk 0:03:09.6]} 9... Be7 {[%clk
0:03:08.1]} 10. Bf4 {[%clk 0:03:09.9]} 10... O-O {[%clk 0:03:09.4]} 11. Ne2
{[%clk 0:03:00]} 11... Nd5 {[%clk 0:03:08.9]} 12. Bh2 {[%clk 0:03:00]} 12... Bd6
{[%clk 0:03:09.7]} 13. c4 {[%clk 0:02:56]} 13... Bxh2+ {[%clk 0:03:09.7]} 14.
Kxh2 {[%clk 0:02:57.9]} 14... Nf6 {[%clk 0:03:05.4]} 15. Qc2 {[%clk 0:02:54.5]}
15... Nbd7 {[%clk 0:03:00.3]} 16. Rad1 {[%clk 0:02:54.7]} 16... Qc7+ {[%clk
0:02:56.2]} 17. g3 {[%clk 0:02:54.9]} 17... a5 {[%clk 0:02:56.4]} 18. Kg2 {[%clk
0:02:41.6]} 18... Rfd8 {[%clk 0:02:56]} 19. Nc3 {[%clk 0:02:34.6]} 19... Nf8
{[%clk 0:02:36]} 20. Rfe1 {[%clk 0:02:30.6]} 20... Rd7 {[%clk 0:02:35.1]} 21.
Qb3 {[%clk 0:02:11]} 21... Rad8 {[%clk 0:02:34.6]} 22. d5 {[%clk 0:02:09]} 22...
exd5 {[%clk 0:02:22.7]} 23. cxd5 {[%clk 0:02:10.9]} 23... cxd5 {[%clk
0:02:23.5]} 24. Nxd5 {[%clk 0:02:07.7]} 24... Nxd5 {[%clk 0:02:22.5]} 25. Rxd5
{[%clk 0:01:56.3]} 25... Rxd5 {[%clk 0:02:21.2]} 26. Bxd5 {[%clk 0:01:58.2]}
26... b6 {[%clk 0:02:22.3]} 27. Rd1 {[%clk 0:01:40.6]} 27... Rd7 {[%clk
0:02:21.1]} 28. Rd3 {[%clk 0:01:32.7]} 28... g6 {[%clk 0:02:21.1]} 29. Rf3
{[%clk 0:01:31.8]} 29... Kg7 {[%clk 0:02:18.9]} 30. Bc4 {[%clk 0:01:27]} 30...
f6 {[%clk 0:01:49.3]} 31. h4 {[%clk 0:01:20.9]} 31... Rd6 {[%clk 0:01:46.9]} 32.
Re3 {[%clk 0:01:18]} 32... Rd7 {[%clk 0:01:38]} 33. Bb5 {[%clk 0:00:56.4]} 33...
Re7 {[%clk 0:01:34.1]} 34. Rc3 {[%clk 0:00:57.4]} 34... Qd6 {[%clk 0:01:25.5]}
35. Rc6 {[%clk 0:00:55.8]} 35... Qd4 {[%clk 0:01:20.2]} 36. Qc3 {[%clk
0:00:28.2]} 36... Qxc3 {[%clk 0:01:20.1]} 37. bxc3 {[%clk 0:00:29.2]} 37... Re6
{[%clk 0:01:20.5]} 38. Rc7+ {[%clk 0:00:30.2]} 38... Kh6 {[%clk 0:01:21.4]} 39.
Bc4 {[%clk 0:00:27.9]} 39... Re8 {[%clk 0:01:05.7]} 40. f4 {[%clk 0:00:23.7]}
40... f5 {[%clk 0:00:55.8]} 41. Kf3 {[%clk 0:00:21.2]} 41... Ne6 {[%clk
0:00:51.1]} 42. Rc6 {[%clk 0:00:20.6]} 42... Nc5 {[%clk 0:00:51]} 43. Rxb6
{[%clk 0:00:18.5]} 43... Ne4 {[%clk 0:00:51.9]} 44. Bf7 {[%clk 0:00:15.8]} 44...
Re7 {[%clk 0:00:48.3]} 45. Bc4 {[%clk 0:00:08.9]} 45... Nd2+ {[%clk 0:00:48.1]}
46. Kg2 {[%clk 0:00:08.3]} 46... Nxc4 {[%clk 0:00:49.5]} 47. Rc6 {[%clk
0:00:09.9]} 47... Re4 {[%clk 0:00:45.6]} 48. Rc5 {[%clk 0:00:10.6]} 48... a4
{[%clk 0:00:45.2]} 49. Rc7 {[%clk 0:00:10]} 49... Na3 {[%clk 0:00:42.7]} 50. Kf2
{[%clk 0:00:08.6]} 50... Rc4 {[%clk 0:00:43.7]} 51. Ra7 {[%clk 0:00:09.8]} 51...
Nb5 {[%clk 0:00:42.7]} 52. Ra5 {[%clk 0:00:10.8]} 52... Nxc3 {[%clk 0:00:43.3]}
53. Ke3 {[%clk 0:00:12.4]} 53... Nxa2 {[%clk 0:00:41.8]} 54. Kf3 {[%clk
0:00:09.8]} 54... Rc3+ {[%clk 0:00:39.2]} 55. Kf2 {[%clk 0:00:10.9]} 55... a3
{[%clk 0:00:40.5]} 56. Ke2 {[%clk 0:00:08.6]} 56... Nb4 {[%clk 0:00:41]} 57. Kd1
{[%clk 0:00:10.5]} 57... Rxg3 {[%clk 0:00:39]} 58. Kc1 {[%clk 0:00:10.9]} 58...
a2 {[%clk 0:00:36.1]} 59. Kb2 {[%clk 0:00:12.8]} 59... Rg1 {[%clk 0:00:34.1]}
60. Ra4 {[%clk 0:00:14.3]} 60... Rb1+ {[%clk 0:00:34]} 61. Kc3 {[%clk
0:00:15.3]} 61... a1=Q+ {[%clk 0:00:35.6]} 62. Rxa1 {[%clk 0:00:16.9]} 62...
Rxa1 {[%clk 0:00:37.4]} 0-1

[Event "*** Titled Tuesday Blitz"]
[Site "Chess.com"]
[Date "2019.07.02"]
[Round "8"]
[White "DryCounty"]
[Black "FelixBlohberger"]
[Result "0-1"]
[WhiteElo "2692"]
[BlackElo "2546"]
[TimeControl "180+2"]
[EndTime "14:50:16 PDT"]
[Termination "FelixBlohberger won by resignation"]

1. d4 {[%clk 0:03:01.5]} 1... Nf6 {[%clk 0:02:55.5]} 2. c4 {[%clk 0:03:02.4]}
2... e6 {[%clk 0:02:55.6]} 3. Nc3 {[%clk 0:03:03.5]} 3... Bb4 {[%clk 0:02:54.5]}
4. e3 {[%clk 0:03:03.3]} 4... b6 {[%clk 0:02:53.7]} 5. Ne2 {[%clk 0:03:03]} 5...
Ne4 {[%clk 0:02:50.6]} 6. Qc2 {[%clk 0:03:01.1]} 6... Bb7 {[%clk 0:02:49.7]} 7.
a3 {[%clk 0:02:58.3]} 7... Bxc3+ {[%clk 0:02:47.8]} 8. Nxc3 {[%clk 0:02:59.2]}
8... Nxc3 {[%clk 0:02:48.1]} 9. Qxc3 {[%clk 0:02:59.6]} 9... Qh4 {[%clk
0:02:43.9]} 10. Bd2 {[%clk 0:02:56.2]} 10... d6 {[%clk 0:02:40.8]} 11. Bd3
{[%clk 0:02:40.3]} 11... Nd7 {[%clk 0:02:12.6]} 12. O-O-O {[%clk 0:02:10.1]}
12... Bxg2 {[%clk 0:02:11.2]} 13. Rhg1 {[%clk 0:02:10.2]} 13... Bf3 {[%clk
0:02:09.2]} 14. Rdf1 {[%clk 0:02:07.3]} 14... O-O {[%clk 0:01:54]} 15. Rg3
{[%clk 0:02:04.7]} 15... Bh5 {[%clk 0:01:52.9]} 16. f4 {[%clk 0:01:55.6]} 16...
f5 {[%clk 0:01:37]} 17. e4 {[%clk 0:01:45.6]} 17... Bg6 {[%clk 0:00:52.7]} 18.
Rfg1 {[%clk 0:01:39.3]} 18... Nf6 {[%clk 0:00:41.2]} 19. exf5 {[%clk 0:01:31]}
19... exf5 {[%clk 0:00:40.7]} 20. d5 {[%clk 0:01:29]} 20... Ne4 {[%clk 0:00:24]}
21. Bxe4 {[%clk 0:01:27.3]} 21... fxe4 {[%clk 0:00:25]} 22. Rg5 {[%clk
0:01:00.1]} 22... Qxh2 {[%clk 0:00:16.8]} 23. Be3 {[%clk 0:00:47.5]} 23... Qh3
{[%clk 0:00:09.6]} 24. Qd4 {[%clk 0:00:38.4]} 24... Qd7 {[%clk 0:00:09.2]} 25.
Bd2 {[%clk 0:00:35.2]} 25... Rae8 {[%clk 0:00:05.3]} 26. R1g3 {[%clk 0:00:33.5]}
26... Re7 {[%clk 0:00:05.3]} 27. Bc3 {[%clk 0:00:34.4]} 27... Rf5 {[%clk
0:00:04.7]} 28. Qe3 {[%clk 0:00:29.1]} 28... Ref7 {[%clk 0:00:03.4]} 29. Rxf5
{[%clk 0:00:26.8]} 29... Qxf5 {[%clk 0:00:05]} 30. Bd2 {[%clk 0:00:25.3]} 30...
Qh5 {[%clk 0:00:03.8]} 31. b3 {[%clk 0:00:23.3]} 31... a5 {[%clk 0:00:03.5]} 32.
a4 {[%clk 0:00:23]} 32... h6 {[%clk 0:00:03.9]} 33. Kb2 {[%clk 0:00:24]} 33...
Kh7 {[%clk 0:00:05]} 34. Rh3 {[%clk 0:00:17]} 34... Qg4 {[%clk 0:00:03.1]} 35.
Rg3 {[%clk 0:00:17.9]} 35... Qh5 {[%clk 0:00:04.3]} 36. Rh3 {[%clk 0:00:17.7]}
36... Qd1 {[%clk 0:00:05.8]} 37. Rg3 {[%clk 0:00:17.7]} 37... Qf1 {[%clk
0:00:06.2]} 38. Bc3 {[%clk 0:00:16.8]} 38... Qd3 {[%clk 0:00:05.9]} 39. Bd2
{[%clk 0:00:14.8]} 39... Qxe3 {[%clk 0:00:06.4]} 40. Bxe3 {[%clk 0:00:15.6]}
40... Bf5 {[%clk 0:00:07.1]} 41. Kc3 {[%clk 0:00:16.3]} 41... g6 {[%clk
0:00:05.1]} 42. Kd4 {[%clk 0:00:17.1]} 42... Kg7 {[%clk 0:00:04.4]} 43. Bd2
{[%clk 0:00:17.8]} 43... Rf8 {[%clk 0:00:05.4]} 44. Ke3 {[%clk 0:00:18.8]} 44...
Kh7 {[%clk 0:00:04.3]} 45. Kd4 {[%clk 0:00:19.4]} 45... Rg8 {[%clk 0:00:05.3]}
46. Be3 {[%clk 0:00:19.8]} 46... h5 {[%clk 0:00:06.3]} 47. Bf2 {[%clk
0:00:18.8]} 47... h4 {[%clk 0:00:06.1]} 48. Rg5 {[%clk 0:00:18.2]} 48... h3
{[%clk 0:00:07]} 49. Bg1 {[%clk 0:00:19.8]} 49... Kg7 {[%clk 0:00:08]} 50. Bh2
{[%clk 0:00:20.5]} 50... Rh8 {[%clk 0:00:08.1]} 51. Ke3 {[%clk 0:00:21.8]} 51...
Rh4 {[%clk 0:00:09]} 52. Rg1 {[%clk 0:00:22.9]} 52... Kf6 {[%clk 0:00:08.2]} 53.
Kf2 {[%clk 0:00:23.4]} 53... Rg4 {[%clk 0:00:08.9]} 54. Rxg4 {[%clk 0:00:23.9]}
54... Bxg4 {[%clk 0:00:10.8]} 55. Ke3 {[%clk 0:00:24.4]} 55... Kf5 {[%clk
0:00:10.5]} 56. Kf2 {[%clk 0:00:23.4]} 56... Bd1 {[%clk 0:00:11.3]} 57. Ke3
{[%clk 0:00:22.1]} 57... Bxb3 {[%clk 0:00:12.1]} 58. Kd4 {[%clk 0:00:23.4]}
58... Bxa4 {[%clk 0:00:13.2]} 0-1

[Event "*** Titled Tuesday Blitz"]
[Site "Chess.com"]
[Date "2019.07.02"]
[Round "8"]
[White "Bagirova"]
[Black "Siniauski"]
[Result "1-0"]
[WhiteElo "1922"]
[BlackElo "2406"]
[TimeControl "180+2"]
[EndTime "14:50:21 PDT"]
[Termination "Bagirova won on time"]

1. e4 {[%clk 0:03:01.9]} 1... e6 {[%clk 0:03:00]} 2. d4 {[%clk 0:03:01.6]} 2...
d5 {[%clk 0:03:00.9]} 3. Nd2 {[%clk 0:03:02.6]} 3... dxe4 {[%clk 0:02:54.1]} 4.
Nxe4 {[%clk 0:03:02.2]} 4... Nd7 {[%clk 0:02:55.7]} 5. Nf3 {[%clk 0:03:02.1]}
5... Ngf6 {[%clk 0:02:55.9]} 6. Ng3 {[%clk 0:03:03]} 6... b6 {[%clk 0:02:54.1]}
7. Bc4 {[%clk 0:03:02.2]} 7... Bb7 {[%clk 0:02:54.7]} 8. O-O {[%clk 0:03:02.1]}
8... Bd6 {[%clk 0:02:54.7]} 9. Re1 {[%clk 0:03:01]} 9... O-O {[%clk 0:02:55.1]}
10. c3 {[%clk 0:02:53.8]} 10... Rc8 {[%clk 0:02:52.8]} 11. Ne5 {[%clk
0:02:53.4]} 11... c5 {[%clk 0:02:45.9]} 12. Nxf7 {[%clk 0:02:52.2]} 12... Rxf7
{[%clk 0:02:41.2]} 13. Bxe6 {[%clk 0:02:53.3]} 13... Nf8 {[%clk 0:02:34.1]} 14.
Bxf7+ {[%clk 0:02:50.1]} 14... Kxf7 {[%clk 0:02:36]} 15. Nh5 {[%clk 0:02:22.1]}
15... cxd4 {[%clk 0:02:02.6]} 16. Nxf6 {[%clk 0:02:12.1]} 16... Qxf6 {[%clk
0:02:02.3]} 17. cxd4 {[%clk 0:02:04.3]} 17... Bd5 {[%clk 0:01:57.6]} 18. Qg4
{[%clk 0:01:58.7]} 18... Be6 {[%clk 0:01:34.1]} 19. Qe4 {[%clk 0:01:57.7]} 19...
Re8 {[%clk 0:01:13.1]} 20. d5 {[%clk 0:01:52.1]} 20... Bd7 {[%clk 0:01:11.1]}
21. Bg5 {[%clk 0:01:32.6]} 21... Rxe4 {[%clk 0:01:02.4]} 22. Bxf6 {[%clk
0:01:32.3]} 22... Rxe1+ {[%clk 0:01:03.4]} 23. Rxe1 {[%clk 0:01:33.3]} 23...
gxf6 {[%clk 0:01:04.5]} 24. g3 {[%clk 0:01:32.4]} 24... Be5 {[%clk 0:01:02]} 25.
b3 {[%clk 0:01:31.5]} 25... Bd4 {[%clk 0:00:56.3]} 26. Kg2 {[%clk 0:01:24.2]}
26... Bf5 {[%clk 0:00:53.4]} 27. f4 {[%clk 0:01:17.4]} 27... Nd7 {[%clk
0:00:48.1]} 28. Kf3 {[%clk 0:01:17.1]} 28... Nc5 {[%clk 0:00:44.6]} 29. g4
{[%clk 0:01:13.6]} 29... Be4+ {[%clk 0:00:36]} 30. Kg3 {[%clk 0:01:06.5]} 30...
Bxd5 {[%clk 0:00:24.8]} 31. Rd1 {[%clk 0:01:05.9]} 31... Ne6 {[%clk 0:00:25.9]}
32. f5 {[%clk 0:01:04.4]} 32... Be5+ {[%clk 0:00:27.1]} 33. Kf2 {[%clk 0:01:04]}
33... Nc7 {[%clk 0:00:26.8]} 34. h4 {[%clk 0:01:02]} 34... Ke7 {[%clk
0:00:26.8]} 35. g5 {[%clk 0:01:01.6]} 35... Kd6 {[%clk 0:00:26.5]} 36. g6 {[%clk
0:00:59.5]} 36... hxg6 {[%clk 0:00:27.3]} 37. fxg6 {[%clk 0:00:55]} 37... f5
{[%clk 0:00:25.5]} 38. h5 {[%clk 0:00:53.5]} 38... Bg7 {[%clk 0:00:26.1]} 39.
Kg3 {[%clk 0:00:47.9]} 39... Ke7 {[%clk 0:00:24.4]} 40. Kf4 {[%clk 0:00:44.3]}
40... Kf6 {[%clk 0:00:24.9]} 41. Rc1 {[%clk 0:00:36.9]} 41... Ne6+ {[%clk
0:00:25]} 42. Kg3 {[%clk 0:00:37.1]} 42... f4+ {[%clk 0:00:17.1]} 43. Kg4 {[%clk
0:00:36.4]} 43... f3 {[%clk 0:00:18.4]} 44. Rd1 {[%clk 0:00:26.1]} 44... Be4
{[%clk 0:00:16]} 45. Rf1 {[%clk 0:00:22.2]} 45... Nd4 {[%clk 0:00:14.4]} 46. Kf4
{[%clk 0:00:20.8]} 46... Bb7 {[%clk 0:00:14.1]} 47. Rd1 {[%clk 0:00:19.7]} 47...
Nf5 {[%clk 0:00:15]} 48. Rd7 {[%clk 0:00:18.8]} 48... Bh6+ {[%clk 0:00:13.5]}
49. Kg4 {[%clk 0:00:17.2]} 49... f2 {[%clk 0:00:14.6]} 50. Rf7+ {[%clk
0:00:18.1]} 50... Ke6 {[%clk 0:00:12.3]} 51. Rxf5 {[%clk 0:00:19.4]} 51... Be3
{[%clk 0:00:11]} 52. g7 {[%clk 0:00:19.7]} 1-0